[Event "Sabato rapido!"]
[Site "Chess.com"]
[Date "2020.06.13"]
[Round "1"]
[White "SanSecondoPR"]
[Black "mr6701"]
[Result "0-1"]
[WhiteElo "1359"]
[BlackElo "1842"]
[TimeControl "720+3"]
[EndTime "6:10:50 PDT"]
[Termination "mr6701 ha vinto per scaccomatto"]

1. e4 {[%clk 0:11:59.8]} 1... d5 {[%clk 0:11:31.9]} 2. Nf3 {[%clk 0:11:57.8]}
2... dxe4 {[%clk 0:11:32.9]} 3. Ng5 {[%clk 0:11:51.3]} 3... Bf5 {[%clk
0:11:34.9]} 4. g4 {[%clk 0:11:45.3]} 4... Bg6 {[%clk 0:11:35.2]} 5. Nc3 {[%clk
0:11:38.5]} 5... Nf6 {[%clk 0:11:31.1]} 6. Bg2 {[%clk 0:11:38]} 6... Qd4 {[%clk
0:11:18.6]} 7. O-O {[%clk 0:11:29.2]} 7... h6 {[%clk 0:11:15.7]} 8. Nh3 {[%clk
0:11:23.2]} 8... e5 {[%clk 0:11:12.7]} 9. Nb5 {[%clk 0:11:17]} 9... Qd7 {[%clk
0:11:08.2]} 10. c4 {[%clk 0:11:01.3]} 10... Bc5 {[%clk 0:10:56.3]} 11. Kh1
{[%clk 0:10:38.7]} 11... a6 {[%clk 0:10:56.6]} 12. Nc3 {[%clk 0:10:35.9]} 12...
Qxg4 {[%clk 0:10:55.9]} 13. f3 {[%clk 0:10:17.1]} 13... exf3 {[%clk 0:10:46.5]}
14. Bxf3 {[%clk 0:10:08.4]} 14... Qxh3 {[%clk 0:10:40.1]} 15. Bxb7 {[%clk
0:09:51.3]} 15... Ra7 {[%clk 0:10:37.4]} 16. Bg2 {[%clk 0:09:45]} 16... Qh4
{[%clk 0:10:25.7]} 17. Qa4+ {[%clk 0:09:37]} 17... Nbd7 {[%clk 0:10:18]} 18. b4
{[%clk 0:09:17]} 18... Bd4 {[%clk 0:10:10.6]} 19. Rb1 {[%clk 0:08:59]} 19... Ng4
{[%clk 0:10:03.5]} 20. h3 {[%clk 0:08:26.2]} 20... Nf2+ {[%clk 0:10:02.9]} 21.
Rxf2 {[%clk 0:08:09.9]} 21... Qxf2 {[%clk 0:10:04.3]} 22. Ba3 {[%clk 0:07:50.3]}
22... Bxb1 {[%clk 0:09:51.3]} 23. Ne4 {[%clk 0:06:14.6]} 23... Qg1# {[%clk
0:09:46.5]} 0-1

[Event "Sabato rapido!"]
[Site "Chess.com"]
[Date "2020.06.13"]
[Round "1"]
[White "lucatarozzi"]
[Black "sergiodone"]
[Result "1/2-1/2"]
[WhiteElo "1303"]
[BlackElo "1529"]
[TimeControl "720+3"]
[EndTime "6:20:24 PDT"]
[Termination "Patta d'accordo"]

1. d4 {[%clk 0:12:00.6]} 1... Nf6 {[%clk 0:11:58.1]} 2. Nf3 {[%clk 0:11:57.9]}
2... c5 {[%clk 0:11:59]} 3. c3 {[%clk 0:11:52.5]} 3... b6 {[%clk 0:11:58.3]} 4.
Bf4 {[%clk 0:11:53]} 4... Bb7 {[%clk 0:11:53.9]} 5. Nbd2 {[%clk 0:11:53.3]} 5...
d6 {[%clk 0:11:52.6]} 6. e3 {[%clk 0:11:54.7]} 6... Nbd7 {[%clk 0:11:54.1]} 7.
Be2 {[%clk 0:11:51.7]} 7... g6 {[%clk 0:11:56]} 8. O-O {[%clk 0:11:52.5]} 8...
Bg7 {[%clk 0:11:57.7]} 9. Bg5 {[%clk 0:11:46.5]} 9... O-O {[%clk 0:11:58.6]} 10.
Re1 {[%clk 0:11:32.6]} 10... h6 {[%clk 0:12:00.2]} 11. Bh4 {[%clk 0:11:29.9]}
11... Kh7 {[%clk 0:12:01.9]} 12. Bd3 {[%clk 0:11:24.6]} 12... Kh8 {[%clk
0:11:52.8]} 13. e4 {[%clk 0:11:20.6]} 13... Rc8 {[%clk 0:11:50.2]} 14. e5 {[%clk
0:11:20.6]} 14... dxe5 {[%clk 0:11:50.8]} 15. dxe5 {[%clk 0:11:22.3]} 15... Nh5
{[%clk 0:10:25.2]} 16. Bc4 {[%clk 0:10:32]} 16... Nf4 {[%clk 0:10:15.1]} 17. Qb3
{[%clk 0:09:58.3]} 17... g5 {[%clk 0:10:05.7]} 18. Bg3 {[%clk 0:09:53]} 18... e6
{[%clk 0:09:53.3]} 19. Bxf4 {[%clk 0:09:32.5]} 19... gxf4 {[%clk 0:09:53.4]} 20.
Bb5 {[%clk 0:08:36.2]} 20... Qc7 {[%clk 0:09:52.4]} 21. Bxd7 {[%clk 0:08:35.9]}
21... Qxd7 {[%clk 0:09:52.7]} 22. Rad1 {[%clk 0:08:34.5]} 22... Qc6 {[%clk
0:09:53.4]} 23. Qc4 {[%clk 0:08:23.8]} 23... b5 {[%clk 0:09:52.1]} 24. Qxf4
{[%clk 0:08:24.4]} 24... Qc7 {[%clk 0:09:16.4]} 25. h3 {[%clk 0:08:10.1]} 25...
Rcd8 {[%clk 0:09:17.9]} 26. Qh4 {[%clk 0:08:06.7]} 26... Rd3 {[%clk 0:07:59.5]}
27. Ne4 {[%clk 0:06:50.6]} 27... Rxd1 {[%clk 0:07:56.2]} 28. Rxd1 {[%clk
0:06:51]} 28... Bxe4 {[%clk 0:07:27.6]} 29. Qxe4 {[%clk 0:06:48.4]} 29... Rd8
{[%clk 0:07:22.1]} 30. Rxd8+ {[%clk 0:06:42.4]} 30... Qxd8 {[%clk 0:07:23]} 31.
Kh2 {[%clk 0:06:33.3]} 31... Qd5 {[%clk 0:07:24.2]} 32. Qf4 {[%clk 0:06:26.6]}
32... Kg8 {[%clk 0:07:03.5]} 33. a3 {[%clk 0:06:23.2]} 33... a5 {[%clk 0:06:54]}
34. g3 {[%clk 0:06:03.8]} 34... Qc4 {[%clk 0:06:48.4]} 35. Qxc4 {[%clk
0:05:49.9]} 35... bxc4 {[%clk 0:06:49.3]} 36. Kg2 {[%clk 0:05:52]} 36... Kf8
{[%clk 0:06:41.9]} 37. Kf1 {[%clk 0:05:54.5]} 37... Ke7 {[%clk 0:06:43.6]} 38.
Ke2 {[%clk 0:05:56.7]} 38... Kd7 {[%clk 0:06:45.1]} 39. Ke3 {[%clk 0:05:56.2]}
39... Kc6 {[%clk 0:06:46.2]} 40. Ke4 {[%clk 0:05:56.2]} 40... Kb5 {[%clk
0:06:28.1]} 41. Nd2 {[%clk 0:05:54.7]} 41... a4 {[%clk 0:06:26.3]} 42. f4 {[%clk
0:05:55.6]} 42... Bf8 {[%clk 0:05:27.1]} 43. h4 {[%clk 0:05:55.5]} 43... Be7
{[%clk 0:05:27.8]} 44. Kf3 {[%clk 0:05:47.8]} 44... f5 {[%clk 0:05:17.5]} 45. h5
{[%clk 0:05:41.7]} 45... Bd8 {[%clk 0:05:06.2]} 46. g4 {[%clk 0:05:40.5]} 46...
Bh4 {[%clk 0:04:59.1]} 47. gxf5 {[%clk 0:05:36.2]} 47... exf5 {[%clk 0:05:00.7]}
48. Ke2 {[%clk 0:05:34]} 48... Be7 {[%clk 0:04:54.8]} 49. Nf3 {[%clk 0:05:26.2]}
49... Kc6 {[%clk 0:04:53.5]} 50. Ke3 {[%clk 0:05:26.8]} 50... Kd5 {[%clk
0:04:55.3]} 51. Nd2 {[%clk 0:05:24]} 51... Bd8 {[%clk 0:04:56.1]} 52. Nf3 {[%clk
0:05:22.2]} 52... Be7 {[%clk 0:04:57.8]} 53. Nd2 {[%clk 0:05:18.8]} 53... Bd8
{[%clk 0:04:58.9]} 54. e6 {[%clk 0:05:20.3]} 54... Be7 {[%clk 0:04:58.1]} 55.
Kf3 {[%clk 0:05:19.5]} 55... Bd8 {[%clk 0:04:56.7]} 56. Ke3 {[%clk 0:05:20.6]}
56... Be7 {[%clk 0:04:57.9]} 57. Kf3 {[%clk 0:05:22.7]} 57... Bd8 {[%clk
0:04:51]} 1/2-1/2

[Event "Sabato rapido!"]
[Site "Chess.com"]
[Date "2020.06.13"]
[Round "1"]
[White "crippo"]
[Black "malberici"]
[Result "0-1"]
[WhiteElo "1548"]
[BlackElo "1365"]
[TimeControl "720+3"]
[EndTime "6:20:38 PDT"]
[Termination "malberici ha vinto per abbandono"]

1. e4 {[%clk 0:11:58.9]} 1... Nf6 {[%clk 0:12:02.4]} 2. Nc3 {[%clk 0:11:57.7]}
2... e5 {[%clk 0:12:03.8]} 3. d3 {[%clk 0:11:59.2]} 3... Bc5 {[%clk 0:12:03.8]}
4. Be2 {[%clk 0:12:00.9]} 4... h6 {[%clk 0:12:05.3]} 5. Nf3 {[%clk 0:12:01]}
5... d6 {[%clk 0:12:03.5]} 6. O-O {[%clk 0:12:01.9]} 6... O-O {[%clk 0:12:04.3]}
7. Be3 {[%clk 0:12:03.1]} 7... b6 {[%clk 0:11:55.4]} 8. Bxc5 {[%clk 0:12:04.3]}
8... bxc5 {[%clk 0:11:56.8]} 9. Nd2 {[%clk 0:12:05.5]} 9... Nc6 {[%clk
0:11:39.7]} 10. Nb3 {[%clk 0:12:03.4]} 10... Nd4 {[%clk 0:11:34]} 11. f4 {[%clk
0:11:59.4]} 11... Nxe2+ {[%clk 0:11:19.8]} 12. Qxe2 {[%clk 0:11:54.5]} 12... Bg4
{[%clk 0:11:20.8]} 13. Qe3 {[%clk 0:11:56.5]} 13... exf4 {[%clk 0:11:21.9]} 14.
Qxf4 {[%clk 0:11:58.1]} 14... c6 {[%clk 0:11:00.6]} 15. Qg3 {[%clk 0:11:59.2]}
15... Bh5 {[%clk 0:10:47.1]} 16. Rf2 {[%clk 0:11:57.9]} 16... Bg6 {[%clk
0:10:31.5]} 17. Raf1 {[%clk 0:11:57.9]} 17... Qb6 {[%clk 0:10:19.9]} 18. Kh1
{[%clk 0:11:35.1]} 18... Rad8 {[%clk 0:10:01.3]} 19. Rxf6 {[%clk 0:11:34.1]}
19... gxf6 {[%clk 0:10:01.4]} 20. Rxf6 {[%clk 0:11:35]} 20... Qc7 {[%clk
0:09:54.2]} 21. h4 {[%clk 0:11:29.8]} 21... h5 {[%clk 0:09:41.7]} 22. Ne2 {[%clk
0:11:24.6]} 22... Qe7 {[%clk 0:09:34.4]} 23. Rf3 {[%clk 0:11:05.5]} 23... Kh7
{[%clk 0:09:25.7]} 24. Nf4 {[%clk 0:10:54.7]} 24... Rg8 {[%clk 0:09:21.4]} 25.
Nh3 {[%clk 0:10:55.4]} 25... Bxe4 {[%clk 0:09:04.6]} 26. Ng5+ {[%clk 0:10:55.3]}
26... Rxg5 {[%clk 0:09:04.4]} 27. hxg5 {[%clk 0:10:55.2]} 27... Bxf3 {[%clk
0:09:05.4]} 28. gxf3 {[%clk 0:10:56.1]} 28... Rg8 {[%clk 0:09:03.8]} 29. f4
{[%clk 0:10:57.8]} 29... f6 {[%clk 0:08:51.7]} 30. Qh4 {[%clk 0:10:58.2]} 30...
Qf7 {[%clk 0:08:49.9]} 31. Nd2 {[%clk 0:10:56.8]} 31... fxg5 {[%clk 0:08:45.2]}
32. fxg5 {[%clk 0:10:58.6]} 32... Qd5+ {[%clk 0:08:33.1]} 33. Ne4 {[%clk
0:10:58.6]} 33... Kg6 {[%clk 0:08:23.4]} 34. Qf4 {[%clk 0:10:52.6]} 34... Qe5
{[%clk 0:08:11.3]} 35. Qf3 {[%clk 0:10:35.5]} 35... Re8 {[%clk 0:07:37.5]} 36.
c4 {[%clk 0:10:15.1]} 36... d5 {[%clk 0:07:33]} 37. cxd5 {[%clk 0:10:07.8]}
37... cxd5 {[%clk 0:07:33]} 38. Nxc5 {[%clk 0:10:00.4]} 38... Qxg5 {[%clk
0:07:25.9]} 39. Qf2 {[%clk 0:09:07]} 39... Re5 {[%clk 0:06:34.4]} 40. d4 {[%clk
0:08:55.4]} 40... Rf5 {[%clk 0:06:26]} 41. Qe1 {[%clk 0:08:44.7]} 41... Qf6
{[%clk 0:05:47.8]} 42. Qe8+ {[%clk 0:08:29.6]} 42... Kh6 {[%clk 0:05:36.9]} 43.
Qe3+ {[%clk 0:08:22.3]} 43... Kh7 {[%clk 0:05:31.1]} 44. Qd3 {[%clk 0:08:13]}
44... Qh4+ {[%clk 0:05:15.2]} 45. Kg2 {[%clk 0:08:14.2]} 45... Qf2+ {[%clk
0:05:11.3]} 46. Kh1 {[%clk 0:08:15.1]} 46... Qf1+ {[%clk 0:05:09.3]} 47. Qxf1
{[%clk 0:08:10]} 47... Rxf1+ {[%clk 0:05:11]} 48. Kg2 {[%clk 0:08:10.8]} 48...
Rb1 {[%clk 0:04:54.2]} 49. Na4 {[%clk 0:08:09.1]} 49... Kg6 {[%clk 0:04:53.2]}
50. Kf3 {[%clk 0:08:09.9]} 50... Kf5 {[%clk 0:04:51.1]} 51. b3 {[%clk
0:08:08.4]} 51... Ra1 {[%clk 0:04:45.9]} 52. Nc3 {[%clk 0:08:08.1]} 52... Rf1+
{[%clk 0:04:45.9]} 53. Kg2 {[%clk 0:08:07.9]} 53... Rf4 {[%clk 0:04:41.4]} 54.
Nxd5 {[%clk 0:08:08.2]} 54... Rxd4 {[%clk 0:04:39.9]} 55. Ne3+ {[%clk
0:08:09.6]} 55... Ke4 {[%clk 0:04:38.1]} 56. Nc4 {[%clk 0:08:08.9]} 56... Rd7
{[%clk 0:04:27.7]} 57. Kh3 {[%clk 0:08:09.6]} 57... Kd4 {[%clk 0:04:20.8]} 58.
Kh4 {[%clk 0:08:10.5]} 58... Rh7 {[%clk 0:04:22.3]} 59. Nd6 {[%clk 0:08:10.1]}
59... Kc3 {[%clk 0:04:21]} 60. Nb5+ {[%clk 0:08:10.7]} 60... Kb2 {[%clk
0:04:20.8]} 61. Nd4 {[%clk 0:08:05.1]} 61... Kxa2 {[%clk 0:04:20.6]} 62. b4
{[%clk 0:08:07.3]} 62... Ka3 {[%clk 0:04:15.6]} 63. b5 {[%clk 0:08:09.2]} 63...
Kb4 {[%clk 0:04:15.9]} 64. Kg5 {[%clk 0:08:03.7]} 64... Kc4 {[%clk 0:04:12.5]}
65. Nf5 {[%clk 0:08:04.1]} 65... Kxb5 {[%clk 0:04:09.3]} 66. Kg6 {[%clk
0:08:05.8]} 66... Rh8 {[%clk 0:04:03.8]} 67. Kg7 {[%clk 0:08:07]} 67... Rb8
{[%clk 0:03:53.2]} 68. Kg6 {[%clk 0:08:07.9]} 68... Rc8 {[%clk 0:03:44]} 69.
Nd6+ {[%clk 0:08:08.2]} 69... Kc6 {[%clk 0:03:37.7]} 70. Nxc8 {[%clk 0:08:10.1]}
70... h4 {[%clk 0:03:39.2]} 71. Ne7+ {[%clk 0:08:09.9]} 71... Kc5 {[%clk
0:03:36.7]} 72. Nf5 {[%clk 0:08:11.8]} 72... h3 {[%clk 0:03:37.8]} 73. Ng3
{[%clk 0:08:13.2]} 73... a5 {[%clk 0:03:38]} 74. Kf5 {[%clk 0:08:15.7]} 74... a4
{[%clk 0:03:39.1]} 75. Ke4 {[%clk 0:08:18.1]} 75... a3 {[%clk 0:03:40.9]} 76.
Kd3 {[%clk 0:08:20.4]} 76... a2 {[%clk 0:03:42.7]} 77. Kc2 {[%clk 0:08:23.1]}
77... a1=Q {[%clk 0:03:43.9]} 78. Kb3 {[%clk 0:08:26]} 78... Qd1+ {[%clk
0:03:43]} 0-1

[Event "Sabato rapido!"]
[Site "Chess.com"]
[Date "2020.06.13"]
[Round "1"]
[White "Mrtre7"]
[Black "fausto2p"]
[Result "1-0"]
[WhiteElo "1463"]
[BlackElo "1245"]
[TimeControl "720+3"]
[EndTime "6:25:53 PDT"]
[Termination "Mrtre7 ha vinto per tempo"]

1. d4 {[%clk 0:12:02]} 1... d5 {[%clk 0:12:00.3]} 2. c4 {[%clk 0:12:02.1]} 2...
c6 {[%clk 0:12:00.8]} 3. Nf3 {[%clk 0:11:58.8]} 3... Nf6 {[%clk 0:12:01.3]} 4.
e3 {[%clk 0:11:56.7]} 4... e6 {[%clk 0:11:35.3]} 5. Bd3 {[%clk 0:11:29.1]} 5...
dxc4 {[%clk 0:11:32]} 6. Bxc4 {[%clk 0:11:30]} 6... b5 {[%clk 0:11:29.7]} 7. Bd3
{[%clk 0:11:31.4]} 7... Nbd7 {[%clk 0:11:18.7]} 8. Nc3 {[%clk 0:11:32.4]} 8...
Bb4 {[%clk 0:10:57.6]} 9. O-O {[%clk 0:11:26.8]} 9... Bxc3 {[%clk 0:10:32.4]}
10. bxc3 {[%clk 0:11:24.9]} 10... O-O {[%clk 0:10:22.7]} 11. e4 {[%clk
0:10:58.7]} 11... Qc7 {[%clk 0:09:00.2]} 12. Qc2 {[%clk 0:10:51.7]} 12... e5
{[%clk 0:08:46.4]} 13. dxe5 {[%clk 0:10:26.2]} 13... Nxe5 {[%clk 0:08:45.3]} 14.
Bf4 {[%clk 0:10:25.6]} 14... Nfd7 {[%clk 0:07:29.1]} 15. Nxe5 {[%clk 0:09:54.3]}
15... Nxe5 {[%clk 0:07:29.4]} 16. Bg3 {[%clk 0:09:52.2]} 16... Qe7 {[%clk
0:06:57.8]} 17. Be2 {[%clk 0:08:55.3]} 17... Bb7 {[%clk 0:06:01.1]} 18. Rad1
{[%clk 0:08:30]} 18... Rad8 {[%clk 0:05:57.8]} 19. f4 {[%clk 0:07:56.1]} 19...
Nc4 {[%clk 0:05:48.1]} 20. Bf2 {[%clk 0:06:42.7]} 20... Rxd1 {[%clk 0:05:34]}
21. Rxd1 {[%clk 0:06:41.4]} 21... Rd8 {[%clk 0:05:24.3]} 22. Rxd8+ {[%clk
0:06:01]} 22... Qxd8 {[%clk 0:05:22.3]} 23. Qd3 {[%clk 0:05:37.4]} 23... Qxd3
{[%clk 0:05:07.2]} 24. Bxd3 {[%clk 0:05:38.7]} 24... a5 {[%clk 0:04:57.3]} 25.
Bd4 {[%clk 0:04:46.6]} 25... Nb2 {[%clk 0:04:05.3]} 26. Bc2 {[%clk 0:04:38.3]}
26... f6 {[%clk 0:03:39.4]} 27. Kf2 {[%clk 0:04:23.9]} 27... Nc4 {[%clk
0:03:27.5]} 28. e5 {[%clk 0:04:12.1]} 28... fxe5 {[%clk 0:03:22.5]} 29. fxe5
{[%clk 0:04:08.7]} 29... Kf7 {[%clk 0:03:23]} 30. Bxh7 {[%clk 0:04:06.8]} 30...
Ke6 {[%clk 0:03:21.5]} 31. Be4 {[%clk 0:03:50.5]} 31... Nxe5 {[%clk 0:03:21.7]}
32. h3 {[%clk 0:03:24]} 32... Kf6 {[%clk 0:01:01.6]} 33. Ke3 {[%clk 0:02:57.6]}
33... Ke6 {[%clk 0:00:40]} 34. Kf4 {[%clk 0:02:47.8]} 34... c5 {[%clk
0:00:20.1]} 35. Bxe5 {[%clk 0:02:47.5]} 35... Bxe4 {[%clk 0:00:20]} 36. Kxe4
{[%clk 0:02:49.2]} 36... g6 {[%clk 0:00:14.1]} 37. Bc7 {[%clk 0:02:44.3]} 1-0

[Event "Sabato rapido!"]
[Site "Chess.com"]
[Date "2020.06.13"]
[Round "2"]
[White "SanSecondoPR"]
[Black "crippo"]
[Result "0-1"]
[WhiteElo "1355"]
[BlackElo "1552"]
[TimeControl "720+3"]
[EndTime "6:31:37 PDT"]
[Termination "crippo ha vinto per abbandono"]

1. e4 {[%clk 0:12:02.9]} 1... e5 {[%clk 0:11:58]} 2. d4 {[%clk 0:12:03.9]} 2...
Nc6 {[%clk 0:11:57.9]} 3. d5 {[%clk 0:12:05]} 3... Nce7 {[%clk 0:11:57.2]} 4.
Bg5 {[%clk 0:12:03.7]} 4... f6 {[%clk 0:11:58.2]} 5. Be3 {[%clk 0:11:57.4]} 5...
Ng6 {[%clk 0:11:59.4]} 6. Be2 {[%clk 0:11:50.7]} 6... d6 {[%clk 0:12:00.6]} 7.
Nc3 {[%clk 0:11:42.8]} 7... N8e7 {[%clk 0:12:02.4]} 8. Bh5 {[%clk 0:11:38.7]}
8... f5 {[%clk 0:12:03.9]} 9. f3 {[%clk 0:11:35.4]} 9... f4 {[%clk 0:12:05.9]}
10. Bf2 {[%clk 0:11:25.5]} 10... Ng8 {[%clk 0:12:07.5]} 11. Nge2 {[%clk
0:11:15]} 11... Nf6 {[%clk 0:12:08.4]} 12. Bh4 {[%clk 0:11:06.3]} 12... Be7
{[%clk 0:12:07.1]} 13. g3 {[%clk 0:11:00.1]} 13... Nxh5 {[%clk 0:12:06.8]} 14.
Rg1 {[%clk 0:10:41.7]} 14... O-O {[%clk 0:12:07.2]} 15. Qd2 {[%clk 0:10:35.3]}
15... Bxh4 {[%clk 0:12:04.9]} 16. gxh4 {[%clk 0:10:28.5]} 16... Qxh4+ {[%clk
0:12:06.2]} 17. Kd1 {[%clk 0:10:29]} 17... Qxh2 {[%clk 0:12:07.6]} 18. Nb5
{[%clk 0:10:16.4]} 18... Ng3 {[%clk 0:12:08.7]} 19. Re1 {[%clk 0:10:04.1]} 19...
c6 {[%clk 0:12:02.9]} 20. dxc6 {[%clk 0:09:54.9]} 20... bxc6 {[%clk 0:12:04.2]}
21. Nc7 {[%clk 0:09:44.3]} 21... Ba6 {[%clk 0:12:04.9]} 22. Nxa6 {[%clk
0:09:37.1]} 22... Qf2 {[%clk 0:12:00.1]} 23. Qxd6 {[%clk 0:09:15.3]} 23... Rad8
{[%clk 0:12:00]} 0-1

[Event "Sabato rapido!"]
[Site "Chess.com"]
[Date "2020.06.13"]
[Round "2"]
[White "APipitone"]
[Black "lucatarozzi"]
[Result "1-0"]
[WhiteElo "1670"]
[BlackElo "1296"]
[TimeControl "720+3"]
[EndTime "6:38:47 PDT"]
[Termination "APipitone ha vinto per abbandono"]

1. e4 {[%clk 0:12:01.5]} 1... d6 {[%clk 0:12:01.6]} 2. d4 {[%clk 0:11:38.8]}
2... Nf6 {[%clk 0:12:00.1]} 3. Nc3 {[%clk 0:11:37.4]} 3... g6 {[%clk 0:11:58.1]}
4. f4 {[%clk 0:11:36.2]} 4... Bg7 {[%clk 0:11:58.4]} 5. Nf3 {[%clk 0:11:36.1]}
5... O-O {[%clk 0:11:56.3]} 6. Be2 {[%clk 0:11:35.1]} 6... b6 {[%clk 0:11:55]}
7. O-O {[%clk 0:11:34.3]} 7... Bb7 {[%clk 0:11:57]} 8. Re1 {[%clk 0:11:07.7]}
8... Nxe4 {[%clk 0:11:54.1]} 9. Nxe4 {[%clk 0:11:06.2]} 9... Bxe4 {[%clk
0:11:55.3]} 10. c3 {[%clk 0:10:35.8]} 10... Bb7 {[%clk 0:11:55.4]} 11. Be3
{[%clk 0:10:29.9]} 11... Nd7 {[%clk 0:11:54]} 12. h4 {[%clk 0:10:20.5]} 12... h5
{[%clk 0:11:52.3]} 13. d5 {[%clk 0:10:03.4]} 13... Nc5 {[%clk 0:11:33.3]} 14.
Ng5 {[%clk 0:09:44.4]} 14... c6 {[%clk 0:11:32.4]} 15. Bf3 {[%clk 0:09:18.6]}
15... cxd5 {[%clk 0:11:15.7]} 16. Bxd5 {[%clk 0:09:17.1]} 16... Bxd5 {[%clk
0:11:17.5]} 17. Qxd5 {[%clk 0:09:16.1]} 17... Qd7 {[%clk 0:11:11.5]} 18. Bd4
{[%clk 0:08:26.9]} 18... e6 {[%clk 0:10:42.2]} 19. Qf3 {[%clk 0:07:51.4]} 19...
Rae8 {[%clk 0:10:01]} 20. Rad1 {[%clk 0:07:24.7]} 20... e5 {[%clk 0:09:54]} 21.
fxe5 {[%clk 0:07:14.3]} 21... Bxe5 {[%clk 0:09:49.5]} 22. Bxe5 {[%clk
0:07:03.9]} 22... Rxe5 {[%clk 0:09:46]} 23. Rxe5 {[%clk 0:06:59.1]} 23... f6
{[%clk 0:09:48]} 24. Qd5+ {[%clk 0:06:43]} 24... Kg7 {[%clk 0:09:43.4]} 25. Ne6+
{[%clk 0:06:16.5]} 25... Nxe6 {[%clk 0:09:22.5]} 26. Rxe6 {[%clk 0:06:12]} 26...
Re8 {[%clk 0:09:04.1]} 27. Rxe8 {[%clk 0:06:05.6]} 27... Qxe8 {[%clk 0:09:04.4]}
28. Qxd6 {[%clk 0:05:59.7]} 28... Qe3+ {[%clk 0:09:06.1]} 29. Kh1 {[%clk
0:05:55.1]} 29... Qg3 {[%clk 0:08:58.1]} 30. Qxg3 {[%clk 0:05:44]} 1-0

[Event "Sabato rapido!"]
[Site "Chess.com"]
[Date "2020.06.13"]
[Round "2"]
[White "sergiodone"]
[Black "Mrtre7"]
[Result "0-1"]
[WhiteElo "1520"]
[BlackElo "1472"]
[TimeControl "720+3"]
[EndTime "6:50:56 PDT"]
[Termination "Mrtre7 ha vinto per abbandono"]

1. e4 {[%clk 0:12:02.9]} 1... c5 {[%clk 0:12:00.4]} 2. Nf3 {[%clk 0:12:02.5]}
2... g6 {[%clk 0:12:00.5]} 3. c3 {[%clk 0:12:01.4]} 3... d5 {[%clk 0:11:59.9]}
4. exd5 {[%clk 0:11:59.1]} 4... Qxd5 {[%clk 0:12:01.4]} 5. d4 {[%clk 0:11:59.8]}
5... Nc6 {[%clk 0:11:57.4]} 6. Be2 {[%clk 0:11:52.2]} 6... Bg7 {[%clk
0:11:58.5]} 7. c4 {[%clk 0:11:39.2]} 7... Qe4 {[%clk 0:10:46.5]} 8. d5 {[%clk
0:11:40.8]} 8... Nd4 {[%clk 0:10:21.4]} 9. Nxd4 {[%clk 0:11:18.2]} 9... Qxg2
{[%clk 0:09:36.7]} 10. Bf3 {[%clk 0:11:18.4]} 10... Qh3 {[%clk 0:09:29.4]} 11.
Ne2 {[%clk 0:11:19]} 11... Qxf3 {[%clk 0:09:09.1]} 12. Rg1 {[%clk 0:11:06.9]}
12... Nf6 {[%clk 0:09:00.2]} 13. Nbc3 {[%clk 0:11:03.2]} 13... Bf5 {[%clk
0:08:02.5]} 14. Be3 {[%clk 0:11:04.3]} 14... O-O {[%clk 0:07:38]} 15. Qd2 {[%clk
0:10:49.6]} 15... Ng4 {[%clk 0:06:57.7]} 16. Bxc5 {[%clk 0:10:48.6]} 16... Rfc8
{[%clk 0:06:43.3]} 17. Be3 {[%clk 0:10:35.7]} 17... Rxc4 {[%clk 0:06:06.6]} 18.
Rc1 {[%clk 0:09:55.4]} 18... Rac8 {[%clk 0:05:02.6]} 19. h4 {[%clk 0:09:26.3]}
19... Ne5 {[%clk 0:04:26.4]} 20. Nf4 {[%clk 0:08:51.1]} 20... Qxf4 {[%clk
0:03:36.6]} 21. Bxf4 {[%clk 0:08:48.5]} 21... Nf3+ {[%clk 0:03:37.7]} 22. Ke2
{[%clk 0:08:37]} 22... Nxd2 {[%clk 0:03:38.9]} 23. Kxd2 {[%clk 0:08:38.2]} 23...
Rxf4 {[%clk 0:03:39.1]} 24. Ke3 {[%clk 0:08:03.9]} 24... Bh6 {[%clk 0:03:29.7]}
25. Ke2 {[%clk 0:07:22.9]} 25... Rxh4 {[%clk 0:03:12.4]} 26. Ra1 {[%clk
0:07:13.6]} 26... Rg4 {[%clk 0:02:44.9]} 27. f3 {[%clk 0:07:08.2]} 27... Rh4
{[%clk 0:02:36.2]} 28. Rh1 {[%clk 0:07:04.6]} 28... Rxh1 {[%clk 0:02:17.4]} 29.
Rxh1 {[%clk 0:07:03.4]} 29... Bg7 {[%clk 0:02:19.3]} 30. Rc1 {[%clk 0:06:51.9]}
30... Bh6 {[%clk 0:02:12.6]} 31. Rh1 {[%clk 0:06:52]} 31... Bf4 {[%clk
0:02:12.7]} 32. a4 {[%clk 0:06:30.6]} 32... Be5 {[%clk 0:02:14.2]} 33. Kd2
{[%clk 0:06:27.6]} 33... Rc4 {[%clk 0:02:11.2]} 34. Re1 {[%clk 0:05:55.9]} 34...
Bxc3+ {[%clk 0:02:03.4]} 35. bxc3 {[%clk 0:05:56.2]} 35... Rxa4 {[%clk
0:02:05.4]} 36. Rxe7 {[%clk 0:05:54.8]} 36... Ra2+ {[%clk 0:02:06.4]} 37. Ke3
{[%clk 0:05:47.2]} 37... Rc2 {[%clk 0:01:59.1]} 38. Kd4 {[%clk 0:05:41.7]} 38...
Rd2+ {[%clk 0:01:56.6]} 39. Kc5 {[%clk 0:05:42.7]} 39... Rf2 {[%clk 0:01:57.1]}
40. Rxb7 {[%clk 0:05:41.2]} 40... Rxf3 {[%clk 0:01:58.9]} 41. c4 {[%clk
0:05:42.9]} 41... Rc3 {[%clk 0:01:58.2]} 42. Rxa7 {[%clk 0:05:39.7]} 42... Bd3
{[%clk 0:01:59.5]} 43. Ra4 {[%clk 0:05:39.4]} 43... h5 {[%clk 0:01:59.6]} 44. d6
{[%clk 0:05:41.2]} 44... Bf5 {[%clk 0:01:58.4]} 45. Kc6 {[%clk 0:05:37.6]} 45...
Rd3 {[%clk 0:01:59.7]} 46. c5 {[%clk 0:05:39.1]} 46... g5 {[%clk 0:01:59]} 47.
Ra1 {[%clk 0:05:28.1]} 47... h4 {[%clk 0:02:00.5]} 48. Rg1 {[%clk 0:05:29.3]}
48... g4 {[%clk 0:02:01]} 49. Kc7 {[%clk 0:05:28.3]} 49... h3 {[%clk 0:02:00.2]}
50. c6 {[%clk 0:05:30.1]} 50... h2 {[%clk 0:01:52.7]} 51. Rg2 {[%clk 0:05:30.9]}
51... h1=Q {[%clk 0:01:50.7]} 52. Rf2 {[%clk 0:05:25.4]} 52... Be6 {[%clk
0:01:48.1]} 53. Rf6 {[%clk 0:05:14.3]} 53... Rc3 {[%clk 0:01:46.3]} 54. d7
{[%clk 0:03:55.9]} 54... Qxc6+ {[%clk 0:01:43.5]} 0-1